[Event "Late-Titled-Tuesday-Blitz-April-23-2024"]
[Site "Chess.com"]
[Date "2024.04.23"]
[Round "10"]
[White "Artem_Koval"]
[Black "Rodalquilar"]
[Result "0-1"]
[WhiteElo "2587"]
[BlackElo "2748"]
[TimeControl "180+1"]
[EndTime "15:58:15 PDT"]
[Termination "Rodalquilar won on time"]

1. d4 {[%clk 0:03:00.9]} 1... d5 {[%clk 0:03:00.2]} 2. Bf4 {[%clk 0:03:00.5]}
2... Nf6 {[%clk 0:03:00.3]} 3. e3 {[%clk 0:03:01.1]} 3... e6 {[%clk 0:03:00.7]}
4. Nf3 {[%clk 0:03:00]} 4... Bd6 {[%clk 0:03:01.2]} 5. Nbd2 {[%clk 0:02:59.1]}
5... O-O {[%clk 0:03:00.3]} 6. Bd3 {[%clk 0:02:59.1]} 6... c5 {[%clk 0:02:57.6]}
7. Bxd6 {[%clk 0:02:51.6]} 7... Qxd6 {[%clk 0:02:57.6]} 8. c3 {[%clk 0:02:51]}
8... Nc6 {[%clk 0:02:55.6]} 9. dxc5 {[%clk 0:02:48.2]} 9... Qxc5 {[%clk
0:02:55.6]} 10. e4 {[%clk 0:02:49.1]} 10... dxe4 {[%clk 0:02:55.1]} 11. Nxe4
{[%clk 0:02:50]} 11... Nxe4 {[%clk 0:02:55.6]} 12. Bxe4 {[%clk 0:02:50.9]} 12...
h6 {[%clk 0:02:43.2]} 13. O-O {[%clk 0:02:49.9]} 13... Rd8 {[%clk 0:02:43]} 14.
Qe2 {[%clk 0:02:49.8]} 14... Bd7 {[%clk 0:02:43.1]} 15. Rad1 {[%clk 0:02:48.3]}
15... Be8 {[%clk 0:02:43.4]} 16. Rxd8 {[%clk 0:02:45]} 16... Rxd8 {[%clk
0:02:43.2]} 17. Rd1 {[%clk 0:02:45.2]} 17... Rc8 {[%clk 0:02:36.2]} 18. h3
{[%clk 0:02:41.5]} 18... a6 {[%clk 0:02:33.9]} 19. Bb1 {[%clk 0:02:34.8]} 19...
b5 {[%clk 0:02:27.8]} 20. Qe4 {[%clk 0:02:33.2]} 20... g6 {[%clk 0:02:27.4]} 21.
a3 {[%clk 0:02:33.1]} 21... Kg7 {[%clk 0:02:19.9]} 22. Nd4 {[%clk 0:02:18]}
22... Nxd4 {[%clk 0:02:10.1]} 23. Qxd4+ {[%clk 0:02:18.9]} 23... Qxd4 {[%clk
0:02:10.5]} 24. Rxd4 {[%clk 0:02:19.5]} 24... Kf6 {[%clk 0:02:09.9]} 25. f4
{[%clk 0:02:12.5]} 25... Ke7 {[%clk 0:02:10.1]} 26. Kf2 {[%clk 0:02:12.1]} 26...
Rc5 {[%clk 0:02:06.9]} 27. Bd3 {[%clk 0:02:03.3]} 27... g5 {[%clk 0:02:01.1]}
28. g3 {[%clk 0:02:00.2]} 28... Bd7 {[%clk 0:01:57]} 29. Ke3 {[%clk 0:01:50.8]}
29... e5 {[%clk 0:01:33.8]} 30. Re4 {[%clk 0:01:49]} 30... f6 {[%clk 0:01:33.2]}
31. fxe5 {[%clk 0:01:44.5]} 31... fxe5 {[%clk 0:01:33.2]} 32. h4 {[%clk
0:00:51.8]} 32... Bf5 {[%clk 0:01:30.9]} 33. Rb4 {[%clk 0:00:49.9]} 33... Bd7
{[%clk 0:01:18]} 34. a4 {[%clk 0:00:41.9]} 34... a5 {[%clk 0:01:12.2]} 35. Rxb5
{[%clk 0:00:41.1]} 35... Bxb5 {[%clk 0:01:12.1]} 36. Bxb5 {[%clk 0:00:42]} 36...
gxh4 {[%clk 0:01:11]} 37. gxh4 {[%clk 0:00:42.6]} 37... e4 {[%clk 0:01:03.8]}
38. Be2 {[%clk 0:00:31.7]} 38... Re5 {[%clk 0:00:58.7]} 39. b4 {[%clk
0:00:29.3]} 39... Kd6 {[%clk 0:00:56.2]} 40. h5 {[%clk 0:00:12.9]} 40... Ke6
{[%clk 0:00:20.3]} 41. bxa5 {[%clk 0:00:06]} 41... Rxa5 {[%clk 0:00:19.2]} 42.
Bb5 {[%clk 0:00:04.2]} 42... Ke5 {[%clk 0:00:19.1]} 43. c4 {[%clk 0:00:04.5]}
43... Ra7 {[%clk 0:00:19.3]} 44. c5 {[%clk 0:00:04.7]} 44... Rg7 {[%clk
0:00:19.5]} 45. c6 {[%clk 0:00:04]} 45... Rg3+ {[%clk 0:00:19.7]} 46. Kd2 {[%clk
0:00:03.5]} 46... Kd4 {[%clk 0:00:16.1]} 47. c7 {[%clk 0:00:02.5]} 47... Rc3
{[%clk 0:00:16]} 48. a5 {[%clk 0:00:02.6]} 48... Rxc7 {[%clk 0:00:16.1]} 49. Ba6
{[%clk 0:00:02.9]} 49... Ra7 {[%clk 0:00:15.9]} 0-1

[Event "Late-Titled-Tuesday-Blitz-April-23-2024"]
[Site "Chess.com"]
[Date "2024.04.23"]
[Round "10"]
[White "DanielNaroditsky"]
[Black "bascheyaro"]
[Result "0-1"]
[WhiteElo "2962"]
[BlackElo "2846"]
[TimeControl "180+1"]
[EndTime "15:58:19 PDT"]
[Termination "bascheyaro won by resignation"]

1. e4 {[%clk 0:03:00.9]} 1... e6 {[%clk 0:03:00.2]} 2. d4 {[%clk 0:03:00.3]}
2... d5 {[%clk 0:03:00.6]} 3. e5 {[%clk 0:03:01.1]} 3... c5 {[%clk 0:03:01]} 4.
Nf3 {[%clk 0:03:01.9]} 4... Qb6 {[%clk 0:03:01.4]} 5. Bd3 {[%clk 0:02:59.1]}
5... Bd7 {[%clk 0:03:01.8]} 6. dxc5 {[%clk 0:02:55.3]} 6... Bxc5 {[%clk
0:03:01.5]} 7. O-O {[%clk 0:02:56.1]} 7... Bb5 {[%clk 0:03:00.1]} 8. Nc3 {[%clk
0:02:50.9]} 8... Bxd3 {[%clk 0:02:59.7]} 9. cxd3 {[%clk 0:02:50.1]} 9... Nc6
{[%clk 0:02:34.6]} 10. Na4 {[%clk 0:02:29.2]} 10... Qb5 {[%clk 0:02:34.8]} 11.
Nxc5 {[%clk 0:02:29.6]} 11... Qxc5 {[%clk 0:02:35.7]} 12. Be3 {[%clk 0:02:29.8]}
12... d4 {[%clk 0:02:30.4]} 13. Nxd4 {[%clk 0:02:11.1]} 13... Nxd4 {[%clk
0:02:30.2]} 14. Qg4 {[%clk 0:01:52.4]} 14... Ne7 {[%clk 0:02:26.4]} 15. Bxd4
{[%clk 0:01:50.2]} 15... Qd5 {[%clk 0:02:26.8]} 16. Rac1 {[%clk 0:01:44]} 16...
O-O {[%clk 0:02:22.6]} 17. Bc5 {[%clk 0:01:36.7]} 17... Rfe8 {[%clk 0:02:22.5]}
18. Bxe7 {[%clk 0:01:33.5]} 18... Rxe7 {[%clk 0:02:23.4]} 19. Qb4 {[%clk
0:01:28.2]} 19... Rd7 {[%clk 0:02:22.8]} 20. Qa4 {[%clk 0:01:11.5]} 20... b5
{[%clk 0:01:50.3]} 21. Qa6 {[%clk 0:01:10.1]} 21... g6 {[%clk 0:01:35.8]} 22. d4
{[%clk 0:00:59.5]} 22... Rad8 {[%clk 0:01:24.9]} 23. Rcd1 {[%clk 0:00:55.8]}
23... Qc4 {[%clk 0:01:18.6]} 24. b3 {[%clk 0:00:54.7]} 24... Qb4 {[%clk
0:01:18.4]} 25. h3 {[%clk 0:00:46.6]} 25... Kg7 {[%clk 0:01:13.8]} 26. Rd3
{[%clk 0:00:37.9]} 26... Rxd4 {[%clk 0:01:12.5]} 27. Rxd4 {[%clk 0:00:33.9]}
27... Qxd4 {[%clk 0:01:13.4]} 28. Qxb5 {[%clk 0:00:33.8]} 28... Rd5 {[%clk
0:01:13.7]} 29. Qa6 {[%clk 0:00:27]} 29... Rxe5 {[%clk 0:01:13.5]} 30. Rc1
{[%clk 0:00:18.9]} 30... Qb2 {[%clk 0:01:09.8]} 31. Rd1 {[%clk 0:00:11.4]} 31...
Qc2 {[%clk 0:01:07.2]} 32. Rf1 {[%clk 0:00:08.4]} 32... Qc5 {[%clk 0:01:05.4]}
33. Qd3 {[%clk 0:00:08.4]} 33... Rd5 {[%clk 0:01:03.8]} 34. Qe2 {[%clk
0:00:08.9]} 34... Qd6 {[%clk 0:01:00.4]} 35. Qb2+ {[%clk 0:00:07.8]} 35... e5
{[%clk 0:01:00.7]} 36. Re1 {[%clk 0:00:06.4]} 36... Rd2 {[%clk 0:00:50]} 37. Qc3
{[%clk 0:00:04.7]} 37... Rxa2 {[%clk 0:00:46.2]} 38. Qxe5+ {[%clk 0:00:03.3]}
38... Qxe5 {[%clk 0:00:46.4]} 39. Rxe5 {[%clk 0:00:04.2]} 39... Rb2 {[%clk
0:00:46.8]} 40. Rb5 {[%clk 0:00:03.7]} 40... a6 {[%clk 0:00:46.9]} 41. Rb6
{[%clk 0:00:03.9]} 41... Rb1+ {[%clk 0:00:46.4]} 42. Kh2 {[%clk 0:00:04.1]}
42... Rb2 {[%clk 0:00:47.1]} 43. Kg3 {[%clk 0:00:04.6]} 43... a5 {[%clk
0:00:47.2]} 44. Rb5 {[%clk 0:00:04.7]} 44... h5 {[%clk 0:00:47.5]} 45. h4 {[%clk
0:00:05]} 45... Rb1 {[%clk 0:00:46.7]} 46. Kf3 {[%clk 0:00:05.5]} 46... Rb2
{[%clk 0:00:47.2]} 47. g3 {[%clk 0:00:06.3]} 47... Kf6 {[%clk 0:00:47.2]} 48.
Ke3 {[%clk 0:00:06.7]} 48... Kg7 {[%clk 0:00:47.5]} 49. f3 {[%clk 0:00:05.5]}
49... Kf6 {[%clk 0:00:47.7]} 50. Kd3 {[%clk 0:00:02.4]} 50... Kg7 {[%clk
0:00:43.2]} 51. Ke4 {[%clk 0:00:02.7]} 51... Ra2 {[%clk 0:00:42.8]} 52. Kf4
{[%clk 0:00:02.1]} 52... a4 {[%clk 0:00:43.3]} 53. b4 {[%clk 0:00:02.1]} 53...
Rb2 {[%clk 0:00:43.8]} 54. Rb6 {[%clk 0:00:02.1]} 54... a3 {[%clk 0:00:44.2]}
55. b5 {[%clk 0:00:02.7]} 55... Rb4+ {[%clk 0:00:41.9]} 56. Ke3 {[%clk
0:00:01.8]} 56... Ra4 {[%clk 0:00:42.4]} 57. Rc6 {[%clk 0:00:01.7]} 57... a2
{[%clk 0:00:42.6]} 58. Rc1 {[%clk 0:00:02.4]} 58... a1=Q {[%clk 0:00:43.1]} 59.
Rxa1 {[%clk 0:00:03.2]} 59... Rxa1 {[%clk 0:00:43.6]} 60. Kd4 {[%clk 0:00:04.1]}
60... Rb1 {[%clk 0:00:44.2]} 61. Kc5 {[%clk 0:00:04.2]} 61... Kf6 {[%clk
0:00:42.6]} 62. b6 {[%clk 0:00:04.2]} 62... Ke5 {[%clk 0:00:43.2]} 63. Kc6
{[%clk 0:00:04.2]} 63... Kd4 {[%clk 0:00:43.8]} 64. b7 {[%clk 0:00:04.7]} 64...
Ke3 {[%clk 0:00:44.4]} 65. f4 {[%clk 0:00:05.3]} 65... Kf3 {[%clk 0:00:44.7]}
66. f5 {[%clk 0:00:05.8]} 66... gxf5 {[%clk 0:00:44.8]} 67. Kd5 {[%clk
0:00:05.8]} 67... Rxb7 {[%clk 0:00:44.3]} 68. Ke5 {[%clk 0:00:06.4]} 68... Kxg3
{[%clk 0:00:44.3]} 69. Kf6 {[%clk 0:00:07.1]} 69... Rb5 {[%clk 0:00:44.6]} 70.
Kg5 {[%clk 0:00:06.6]} 70... f4+ {[%clk 0:00:45.1]} 0-1

[Event "Late-Titled-Tuesday-Blitz-April-23-2024"]
[Site "Chess.com"]
[Date "2024.04.23"]
[Round "10"]
[White "emeli_chess"]
[Black "Bykov_Egor"]
[Result "0-1"]
[WhiteElo "2474"]
[BlackElo "2620"]
[TimeControl "180+1"]
[EndTime "15:58:21 PDT"]
[Termination "Bykov_Egor won by resignation"]

1. d4 {[%clk 0:03:00.9]} 1... Nf6 {[%clk 0:02:56.1]} 2. c4 {[%clk 0:03:00]} 2...
e6 {[%clk 0:02:54.2]} 3. Nc3 {[%clk 0:03:00.4]} 3... Bb4 {[%clk 0:02:54]} 4. Qc2
{[%clk 0:03:00.3]} 4... O-O {[%clk 0:02:52.4]} 5. e4 {[%clk 0:02:58.6]} 5... d5
{[%clk 0:02:52.4]} 6. e5 {[%clk 0:02:58.2]} 6... Ne4 {[%clk 0:02:53]} 7. Bd3
{[%clk 0:02:57]} 7... c5 {[%clk 0:02:53.2]} 8. Nf3 {[%clk 0:02:57.1]} 8... cxd4
{[%clk 0:02:51.4]} 9. Nxd4 {[%clk 0:02:56.8]} 9... Nd7 {[%clk 0:02:50.2]} 10.
Bf4 {[%clk 0:02:56.3]} 10... Ndc5 {[%clk 0:02:46]} 11. O-O {[%clk 0:02:46.6]}
11... Bxc3 {[%clk 0:02:30.4]} 12. bxc3 {[%clk 0:02:45.9]} 12... Nxd3 {[%clk
0:02:16.8]} 13. Qxd3 {[%clk 0:02:45.4]} 13... Nc5 {[%clk 0:02:17.4]} 14. Qg3
{[%clk 0:02:36.4]} 14... Ne4 {[%clk 0:01:56.9]} 15. Qe3 {[%clk 0:02:31.3]} 15...
Qe7 {[%clk 0:01:40.5]} 16. cxd5 {[%clk 0:02:29.7]} 16... exd5 {[%clk 0:01:39.8]}
17. f3 {[%clk 0:02:15.9]} 17... Nc5 {[%clk 0:01:38.6]} 18. Bg5 {[%clk
0:02:04.9]} 18... f6 {[%clk 0:01:36.7]} 19. exf6 {[%clk 0:02:03.9]} 19... Qxe3+
{[%clk 0:01:37.6]} 20. Bxe3 {[%clk 0:02:03.6]} 20... Rxf6 {[%clk 0:01:34.9]} 21.
Nb5 {[%clk 0:01:58.9]} 21... Ne6 {[%clk 0:01:23.3]} 22. Rfd1 {[%clk 0:01:46.7]}
22... a6 {[%clk 0:00:50.8]} 23. Nd6 {[%clk 0:01:44.3]} 23... Nc7 {[%clk
0:00:50.9]} 24. Nxc8 {[%clk 0:01:38.1]} 24... Rxc8 {[%clk 0:00:51.2]} 25. Bd4
{[%clk 0:01:34.7]} 25... Re6 {[%clk 0:00:50]} 26. Re1 {[%clk 0:01:34.1]} 26...
Rce8 {[%clk 0:00:49]} 27. Kf2 {[%clk 0:01:33.5]} 27... Nb5 {[%clk 0:00:47]} 28.
Rxe6 {[%clk 0:01:29.7]} 28... Rxe6 {[%clk 0:00:47.9]} 29. Rd1 {[%clk 0:01:29.4]}
29... Kf7 {[%clk 0:00:45.4]} 30. a4 {[%clk 0:01:26.3]} 30... Nc7 {[%clk
0:00:35.2]} 31. f4 {[%clk 0:01:20.7]} 31... g6 {[%clk 0:00:31.9]} 32. Be5 {[%clk
0:01:19.5]} 32... Rc6 {[%clk 0:00:25.7]} 33. Bxc7 {[%clk 0:01:19.1]} 33... Rxc7
{[%clk 0:00:26.6]} 34. Rxd5 {[%clk 0:01:19.2]} 34... Ke6 {[%clk 0:00:25.4]} 35.
Re5+ {[%clk 0:01:14.8]} 35... Kd6 {[%clk 0:00:23.5]} 36. Re3 {[%clk 0:01:02.9]}
36... Rc4 {[%clk 0:00:20.6]} 37. Kf3 {[%clk 0:00:58.2]} 37... Rxa4 {[%clk
0:00:20.4]} 38. g4 {[%clk 0:00:58.4]} 38... Ra1 {[%clk 0:00:20.4]} 39. f5 {[%clk
0:00:55.7]} 39... Rf1+ {[%clk 0:00:20.3]} 40. Ke4 {[%clk 0:00:55.3]} 40... g5
{[%clk 0:00:19.2]} 41. Rd3+ {[%clk 0:00:53.9]} 41... Ke7 {[%clk 0:00:18.9]} 42.
Ke5 {[%clk 0:00:52.5]} 42... Re1+ {[%clk 0:00:14.9]} 43. Kd5 {[%clk 0:00:52]}
43... Rg1 {[%clk 0:00:13.5]} 44. h3 {[%clk 0:00:51.6]} 44... Rb1 {[%clk
0:00:12.1]} 45. Re3+ {[%clk 0:00:50.9]} 45... Kf7 {[%clk 0:00:12.4]} 46. Re6
{[%clk 0:00:43.6]} 46... Rb5+ {[%clk 0:00:12]} 47. Ke4 {[%clk 0:00:41.2]} 47...
a5 {[%clk 0:00:11.3]} 48. Rh6 {[%clk 0:00:39.2]} 48... Kg7 {[%clk 0:00:09.7]}
49. Rd6 {[%clk 0:00:39.1]} 49... a4 {[%clk 0:00:09.6]} 50. Rd7+ {[%clk
0:00:28.1]} 50... Kf6 {[%clk 0:00:09.9]} 51. Rxh7 {[%clk 0:00:26.9]} 51... a3
{[%clk 0:00:10.2]} 52. Rh8 {[%clk 0:00:27]} 52... Ra5 {[%clk 0:00:09.9]} 53.
Rh6+ {[%clk 0:00:22.5]} 53... Kg7 {[%clk 0:00:09.3]} 54. Rg6+ {[%clk 0:00:20.7]}
54... Kf7 {[%clk 0:00:09.8]} 55. Rxg5 {[%clk 0:00:18]} 55... a2 {[%clk 0:00:10]}
56. f6 {[%clk 0:00:17.8]} 56... Rxg5 {[%clk 0:00:09.2]} 0-1

[Event "Late-Titled-Tuesday-Blitz-April-23-2024"]
[Site "Chess.com"]
[Date "2024.04.23"]
[Round "10"]
[White "artin10862"]
[Black "ReadySkate"]
[Result "1-0"]
[WhiteElo "2927"]
[BlackElo "2709"]
[TimeControl "180+1"]
[EndTime "15:58:22 PDT"]
[Termination "artin10862 won by resignation"]

1. e4 {[%clk 0:02:57.5]} 1... c5 {[%clk 0:02:59.5]} 2. Nf3 {[%clk 0:02:56.6]}
2... d6 {[%clk 0:02:59.2]} 3. Nc3 {[%clk 0:02:55.3]} 3... a6 {[%clk 0:02:58.9]}
4. d4 {[%clk 0:02:54.8]} 4... cxd4 {[%clk 0:02:59.8]} 5. Nxd4 {[%clk 0:02:55.6]}
5... Nf6 {[%clk 0:03:00.2]} 6. Bg5 {[%clk 0:02:50.9]} 6... Nbd7 {[%clk
0:02:59.6]} 7. Qe2 {[%clk 0:02:44.9]} 7... h6 {[%clk 0:02:57.6]} 8. Bh4 {[%clk
0:02:44.4]} 8... e6 {[%clk 0:02:57.7]} 9. f4 {[%clk 0:02:41.4]} 9... Be7 {[%clk
0:02:54.8]} 10. Bf2 {[%clk 0:02:27.2]} 10... Qc7 {[%clk 0:02:47.1]} 11. g4
{[%clk 0:02:24.6]} 11... g6 {[%clk 0:02:41.2]} 12. Nb3 {[%clk 0:02:09.5]} 12...
b5 {[%clk 0:02:30.1]} 13. O-O-O {[%clk 0:02:09]} 13... Bb7 {[%clk 0:02:28.9]}
14. Bg2 {[%clk 0:02:06]} 14... O-O-O {[%clk 0:02:20.3]} 15. h4 {[%clk
0:01:43.1]} 15... h5 {[%clk 0:02:03.7]} 16. g5 {[%clk 0:01:40]} 16... Ng4 {[%clk
0:02:02.4]} 17. Bd4 {[%clk 0:01:37.2]} 17... Rhe8 {[%clk 0:01:56.8]} 18. Rh3
{[%clk 0:01:36.2]} 18... Kb8 {[%clk 0:01:52.8]} 19. a4 {[%clk 0:01:29.8]} 19...
e5 {[%clk 0:01:24.6]} 20. Bg1 {[%clk 0:01:15]} 20... b4 {[%clk 0:01:16.4]} 21.
Nd5 {[%clk 0:01:02.5]} 21... Bxd5 {[%clk 0:01:14.7]} 22. exd5 {[%clk 0:00:57.3]}
22... Kb7 {[%clk 0:00:34.3]} 23. Qe4 {[%clk 0:00:49]} 23... Rb8 {[%clk
0:00:23.4]} 24. f5 {[%clk 0:00:42.2]} 24... gxf5 {[%clk 0:00:21.3]} 25. Qxf5
{[%clk 0:00:41.9]} 25... f6 {[%clk 0:00:13.6]} 26. g6 {[%clk 0:00:37.2]} 26...
Bf8 {[%clk 0:00:13.1]} 27. Qxh5 {[%clk 0:00:30.8]} 27... Nh6 {[%clk 0:00:12.5]}
28. Qe2 {[%clk 0:00:24.4]} 28... f5 {[%clk 0:00:11.6]} 29. Bf1 {[%clk 0:00:24]}
29... Ra8 {[%clk 0:00:10.4]} 30. Kb1 {[%clk 0:00:22.2]} 30... Rec8 {[%clk
0:00:10.2]} 31. c3 {[%clk 0:00:21.6]} 31... Nc5 {[%clk 0:00:07.8]} 32. Nxc5+
{[%clk 0:00:15.1]} 32... dxc5 {[%clk 0:00:07.9]} 33. Be3 {[%clk 0:00:09.6]}
33... f4 {[%clk 0:00:07.4]} 34. Bg1 {[%clk 0:00:09.9]} 34... Nf5 {[%clk
0:00:06.4]} 35. d6 {[%clk 0:00:08.6]} 35... Nxd6 {[%clk 0:00:03.4]} 36. Bg2+
{[%clk 0:00:09.2]} 36... Ka7 {[%clk 0:00:03.6]} 37. cxb4 {[%clk 0:00:08.1]}
37... e4 {[%clk 0:00:02.7]} 38. bxc5 {[%clk 0:00:05.2]} 38... Nb7 {[%clk
0:00:02.1]} 39. c6+ {[%clk 0:00:04.2]} 39... Nc5 {[%clk 0:00:02.7]} 40. Rc1
{[%clk 0:00:04.7]} 40... Qb6 {[%clk 0:00:03]} 41. Bxe4 {[%clk 0:00:04.5]} 41...
Rab8 {[%clk 0:00:02.4]} 42. Qc2 {[%clk 0:00:04.8]} 42... Qa5 {[%clk 0:00:02.7]}
43. Bxc5+ {[%clk 0:00:04.8]} 43... Bxc5 {[%clk 0:00:03.6]} 44. Qxc5+ {[%clk
0:00:05.7]} 44... Qxc5 {[%clk 0:00:04.5]} 45. Rxc5 {[%clk 0:00:06.6]} 45... Rb4
{[%clk 0:00:05.2]} 46. Bc2 {[%clk 0:00:06.2]} 46... Kb6 {[%clk 0:00:05.7]} 47.
Rg5 {[%clk 0:00:06]} 47... Rd4 {[%clk 0:00:05.7]} 48. g7 {[%clk 0:00:06.2]}
48... Rdd8 {[%clk 0:00:05.6]} 49. h5 {[%clk 0:00:06.5]} 49... f3 {[%clk
0:00:05.8]} 50. Rxf3 {[%clk 0:00:06.6]} 1-0

[Event "Late-Titled-Tuesday-Blitz-April-23-2024"]
[Site "Chess.com"]
[Date "2024.04.23"]
[Round "10"]
[White "Mikhail_Golubev"]
[Black "N_I_Chess"]
[Result "1-0"]
[WhiteElo "2560"]
[BlackElo "2387"]
[TimeControl "180+1"]
[EndTime "15:58:27 PDT"]
[Termination "Mikhail_Golubev won on time"]

1. e4 {[%clk 0:03:00.9]} 1... Nf6 {[%clk 0:02:42.7]} 2. e5 {[%clk 0:02:59.2]}
2... Nd5 {[%clk 0:02:41.9]} 3. d4 {[%clk 0:02:59.1]} 3... d6 {[%clk 0:02:41.7]}
4. Nf3 {[%clk 0:02:59.2]} 4... g6 {[%clk 0:02:40.5]} 5. Bc4 {[%clk 0:02:56.4]}
5... Nb6 {[%clk 0:02:39.3]} 6. Bb3 {[%clk 0:02:53.9]} 6... Bg7 {[%clk
0:02:38.6]} 7. Ng5 {[%clk 0:02:44.3]} 7... d5 {[%clk 0:01:38.3]} 8. O-O {[%clk
0:02:28.1]} 8... h6 {[%clk 0:01:33.4]} 9. Nf3 {[%clk 0:02:27.2]} 9... O-O {[%clk
0:01:32.1]} 10. h3 {[%clk 0:02:26.5]} 10... Na6 {[%clk 0:01:28.1]} 11. c3 {[%clk
0:02:22]} 11... c5 {[%clk 0:01:26.8]} 12. Be3 {[%clk 0:02:16]} 12... cxd4 {[%clk
0:01:24.8]} 13. cxd4 {[%clk 0:02:15.9]} 13... Bf5 {[%clk 0:01:21.7]} 14. Nc3
{[%clk 0:02:13.4]} 14... Rc8 {[%clk 0:01:13]} 15. Rc1 {[%clk 0:02:11.8]} 15...
Nb4 {[%clk 0:01:02.6]} 16. Nh4 {[%clk 0:01:57.2]} 16... Bd3 {[%clk 0:00:56.5]}
17. Re1 {[%clk 0:01:49.8]} 17... Ba6 {[%clk 0:00:55.3]} 18. e6 {[%clk
0:01:11.5]} 18... Nd3 {[%clk 0:00:52.3]} 19. exf7+ {[%clk 0:01:11.7]} 19... Rxf7
{[%clk 0:00:53.2]} 20. Nxg6 {[%clk 0:01:08.9]} 20... Nxc1 {[%clk 0:00:46.3]} 21.
Bxc1 {[%clk 0:00:56.1]} 21... Qd6 {[%clk 0:00:27]} 22. Qg4 {[%clk 0:00:39.2]}
22... Qd7 {[%clk 0:00:05.8]} 23. Qxd7 {[%clk 0:00:35.4]} 23... Nxd7 {[%clk
0:00:05.7]} 24. Nxe7+ {[%clk 0:00:22.1]} 24... Rxe7 {[%clk 0:00:05]} 25. Rxe7
{[%clk 0:00:23]} 25... Nf6 {[%clk 0:00:04.5]} 26. Be3 {[%clk 0:00:20.5]} 26...
Kf8 {[%clk 0:00:03.1]} 27. Re5 {[%clk 0:00:17.8]} 27... Bc4 {[%clk 0:00:01.2]}
28. Bxc4 {[%clk 0:00:14.7]} 28... dxc4 {[%clk 0:00:02.1]} 29. d5 {[%clk
0:00:13.8]} 29... Rd8 {[%clk 0:00:02]} 30. Bc5+ {[%clk 0:00:13.2]} 30... Kf7
{[%clk 0:00:02.1]} 31. Re7+ {[%clk 0:00:12]} 31... Kg6 {[%clk 0:00:02.6]} 32. d6
{[%clk 0:00:11.9]} 32... Rd7 {[%clk 0:00:02.6]} 33. Rxd7 {[%clk 0:00:10.8]}
33... Nxd7 {[%clk 0:00:02.5]} 34. Bxa7 {[%clk 0:00:11.4]} 34... Bxc3 {[%clk
0:00:02.1]} 35. bxc3 {[%clk 0:00:11.4]} 35... b6 {[%clk 0:00:02.8]} 36. g4
{[%clk 0:00:10.9]} 36... Kf6 {[%clk 0:00:02.9]} 37. f4 {[%clk 0:00:10.6]} 37...
Ke6 {[%clk 0:00:03.4]} 38. g5 {[%clk 0:00:08.5]} 38... hxg5 {[%clk 0:00:02]} 39.
fxg5 {[%clk 0:00:08.8]} 39... Kxd6 {[%clk 0:00:02.9]} 40. g6 {[%clk 0:00:09]}
40... Ke6 {[%clk 0:00:03.3]} 41. h4 {[%clk 0:00:07.8]} 41... Kf6 {[%clk
0:00:03.9]} 42. h5 {[%clk 0:00:08]} 42... Kg7 {[%clk 0:00:04.5]} 43. Kf2 {[%clk
0:00:07.7]} 43... Kh6 {[%clk 0:00:05.1]} 44. Ke3 {[%clk 0:00:07.1]} 44... Kxh5
{[%clk 0:00:05.1]} 45. g7 {[%clk 0:00:07.5]} 45... Nf6 {[%clk 0:00:05.5]} 46.
Bxb6 {[%clk 0:00:07.6]} 46... Kg6 {[%clk 0:00:05.5]} 47. Bd4 {[%clk 0:00:07.7]}
47... Nd5+ {[%clk 0:00:04.4]} 48. Ke4 {[%clk 0:00:07.9]} 48... Ne7 {[%clk
0:00:04.6]} 49. a4 {[%clk 0:00:07.7]} 49... Kf7 {[%clk 0:00:04.7]} 50. a5 {[%clk
0:00:07.9]} 50... Ke6 {[%clk 0:00:04.9]} 51. a6 {[%clk 0:00:08.2]} 51... Nd5
{[%clk 0:00:02.7]} 52. a7 {[%clk 0:00:08.6]} 1-0